[Event "Kvibergspelen 2022"]
[Site "Kviberg Park Hotel & Conference, Krutvagen 2, Gothenburg, Sweden"]
[Date "2022.10.01"]
[Round "5.3"]
[White "Kucuksari, Kaan"]
[Black "Hamark, Jesper"]
[Result "1/2-1/2"]
[TimeControl "15 minutes + 5 seconds per move from move one (Round 1 - 4) / 90 minutes + 30 seconds per move from move one (Round 5 - 8)"]
[WhiteTitle "FM"]
[WhiteFideId "6380166"]
[BlackFideId "1704338"]
[WhiteElo "2482"]
[BlackElo "2348"]

1. d4 {[%clk 01:30:32]} {[%emt 00:00:28]} Nf6 {[%clk 01:30:35]} {[%emt
00:00:26]} 2. c4 {[%clk 01:30:56]} {[%emt 00:00:06]} g6 {[%clk 01:31:02]}
{[%emt 00:00:03]} 3. g3 {[%clk 01:31:20]} {[%emt 00:00:06]} Bg7 {[%clk
01:31:26]} {[%emt 00:00:05]} 4. Bg2 {[%clk 01:31:44]} {[%emt 00:00:06]} O-O
{[%clk 01:31:52]} {[%emt 00:00:05]} 5. Nc3 {[%clk 01:32:05]} {[%emt 00:00:09]}
d6 {[%clk 01:32:05]} {[%emt 00:00:17]} 6. Nf3 {[%clk 01:32:30]} {[%emt
00:00:05]} c5 {[%clk 01:31:09]} {[%emt 00:01:26]} 7. d5 {[%clk 01:32:35]}
{[%emt 00:00:25]} e6 {[%clk 01:31:06]} {[%emt 00:00:33]} 8. O-O {[%clk
01:32:59]} {[%emt 00:00:06]} exd5 {[%clk 01:31:31]} {[%emt 00:00:05]} 9. cxd5
{[%clk 01:33:24]} {[%emt 00:00:04]} Nbd7 {[%clk 01:31:11]} {[%emt 00:00:50]} 10.
Bf4 {[%clk 01:32:38]} {[%emt 00:01:17]} Qe7 {[%clk 01:31:24]} {[%emt 00:00:16]}
11. Qd2 {[%clk 01:30:48]} {[%emt 00:02:20]} Ng4 {[%clk 01:27:30]} {[%emt
00:04:24]} 12. Rab1 {[%clk 01:21:01]} {[%emt 00:10:18]} Nge5 {[%clk 01:17:58]}
{[%emt 00:10:02]} 13. b4 {[%clk 01:17:38]} {[%emt 00:03:53]} b6 {[%clk
01:08:46]} {[%emt 00:09:42]} 14. bxc5 {[%clk 01:10:13]} {[%emt 00:07:54]} bxc5
{[%clk 01:06:34]} {[%emt 00:02:42]} 15. Nb5 {[%clk 01:06:07]} {[%emt 00:04:38]}
Nxf3+ {[%clk 00:43:47]} {[%emt 00:23:16]} 16. exf3 {[%clk 01:02:12]} {[%emt
00:04:24]} Ne5 {[%clk 00:42:09]} {[%emt 00:02:08]} 17. Rfe1 {[%clk 00:58:00]}
{[%emt 00:04:43]} Qd7 {[%clk 00:30:05]} {[%emt 00:12:34]} 18. Bh6 {[%clk
00:51:23]} {[%emt 00:07:07]} Rb8 {[%clk 00:16:42]} {[%emt 00:13:53]} 19. Bxg7
{[%clk 00:41:52]} {[%emt 00:10:01]} Kxg7 {[%clk 00:16:50]} {[%emt 00:00:22]} 20.
a4 {[%clk 00:37:11]} {[%emt 00:05:11]} a6 {[%clk 00:15:46]} {[%emt 00:01:35]}
21. Nc3 {[%clk 00:36:28]} {[%emt 00:01:13]} Rxb1 {[%clk 00:16:04]} {[%emt
00:00:12]} 22. Rxb1 {[%clk 00:36:53]} {[%emt 00:00:04]} Qd8 {[%clk 00:16:12]}
{[%emt 00:00:23]} 23. f4 {[%clk 00:33:35]} {[%emt 00:03:48]} Ng4 {[%clk
00:16:19]} {[%emt 00:00:23]} 24. Ne4 {[%clk 00:20:47]} {[%emt 00:13:17]} Bf5
{[%clk 00:15:18]} {[%emt 00:01:32]} 25. Qb2+ {[%clk 00:20:08]} {[%emt
00:01:08]} Kg8 {[%clk 00:15:44]} {[%emt 00:00:04]} 26. h3 {[%clk 00:16:44]}
{[%emt 00:03:54]} Bxe4 {[%clk 00:13:06]} {[%emt 00:03:08]} 27. Bxe4 {[%clk
00:17:08]} {[%emt 00:00:06]} Nf6 {[%clk 00:11:56]} {[%emt 00:01:41]} 28. Bf3
{[%clk 00:17:23]} {[%emt 00:00:15]} Nd7 {[%clk 00:10:19]} {[%emt 00:02:06]} 29.
Qb7 {[%clk 00:12:55]} {[%emt 00:04:59]} Qb8 {[%clk 00:06:38]} {[%emt 00:04:11]}
30. a5 {[%clk 00:10:45]} {[%emt 00:02:40]} c4 {[%clk 00:03:19]} {[%emt
00:03:49]} 31. Qxb8 {[%clk 00:06:16]} {[%emt 00:04:59]} Rxb8 {[%clk 00:03:14]}
{[%emt 00:00:35]} 32. Rc1 {[%clk 00:06:10]} {[%emt 00:00:36]} Rb4 {[%clk
00:02:47]} {[%emt 00:00:55]} 33. Be2 {[%clk 00:06:19]} {[%emt 00:00:22]} Ra4
{[%clk 00:02:17]} {[%emt 00:01:00]} 34. Rxc4 {[%clk 00:04:36]} {[%emt
00:02:12]} Rxa5 {[%clk 00:01:55]} {[%emt 00:00:53]} 35. Rc6 {[%clk 00:04:57]}
{[%emt 00:00:09]} Rxd5 {[%clk 00:02:11]} {[%emt 00:00:13]} 36. Rxa6 {[%clk
00:05:20]} {[%emt 00:00:08]} Nf6 {[%clk 00:01:29]} {[%emt 00:01:12]} 37. Bc4
{[%clk 00:05:43]} {[%emt 00:00:06]} Rd2 {[%clk 00:01:15]} {[%emt 00:00:44]} 38.
Kg2 {[%clk 00:05:26]} {[%emt 00:00:47]} d5 {[%clk 00:01:42]} {[%emt 00:00:03]}
39. Ra2 {[%clk 00:04:30]} {[%emt 00:01:25]} Rd4 {[%clk 00:01:03]} {[%emt
00:01:10]} 40. Be2 {[%clk 00:04:59]} {[%emt 00:00:02]} h5 {[%clk 00:01:13]}
{[%emt 00:00:20]} 41. Kf3 {[%clk 00:05:17]} {[%emt 00:00:12]} Kg7 {[%clk
00:01:24]} {[%emt 00:00:20]} 42. Ke3 {[%clk 00:04:16]} {[%emt 00:01:29]} Re4+
{[%clk 00:01:52]} {[%emt 00:00:04]} 43. Kf3 {[%clk 00:04:22]} {[%emt 00:00:23]}
Rd4 {[%clk 00:02:21]} {[%emt 00:00:01]} 44. Ra3 {[%clk 00:04:18]} {[%emt
00:00:33]} Kf8 {[%clk 00:02:22]} {[%emt 00:00:30]} 45. Ra7 {[%clk 00:02:34]}
{[%emt 00:02:14]} Rb4 {[%clk 00:02:25]} {[%emt 00:00:28]} 46. Bd3 {[%clk
00:02:44]} {[%emt 00:00:19]} Rb2 {[%clk 00:02:03]} {[%emt 00:00:53]} 47. Ke3
{[%clk 00:03:00]} {[%emt 00:00:13]} Ne4 {[%clk 00:01:16]} {[%emt 00:01:17]} 48.
Bxe4 {[%clk 00:01:14]} {[%emt 00:02:16]} dxe4 {[%clk 00:01:45]} {[%emt
00:00:01]} 49. Ra4 {[%clk 00:01:14]} {[%emt 00:00:30]} f5 {[%clk 00:01:48]}
{[%emt 00:00:27]} 50. Ra7 {[%clk 00:01:42]} {[%emt 00:00:02]} Rb3+ {[%clk
00:00:56]} {[%emt 00:01:22]} 51. Kd4 {[%clk 00:02:05]} {[%emt 00:00:06]} h4
{[%clk 00:00:59]} {[%emt 00:00:29]} 52. gxh4 {[%clk 00:02:04]} {[%emt
00:00:31]} Rxh3 {[%clk 00:01:27]} {[%emt 00:00:01]} 53. Ke5 {[%clk 00:02:28]}
{[%emt 00:00:07]} Rxh4 {[%clk 00:01:33]} {[%emt 00:00:24]} 54. Kf6 {[%clk
00:01:48]} {[%emt 00:01:10]} Ke8 {[%clk 00:02:01]} 55. Ke6 {[%clk 00:01:04]}
{[%emt 00:01:15]} Kf8 {[%clk 00:02:01]} {[%emt 00:00:30]} 56. Kf6 {[%clk
00:01:16]} {[%emt 00:00:18]} Ke8 {[%clk 00:02:29]} {[%emt 00:00:02]} 57. Ke6
{[%clk 00:01:40]} {[%emt 00:00:05]} Kf8 {[%clk 00:02:54]} {[%emt 00:00:05]} 58.
Kf6 {[%clk 00:02:04]} {[%emt 00:00:06]} 1/2-1/2

[Event "Kvibergspelen 2022"]
[Site "Kviberg Park Hotel & Conference, Krutvagen 2, Gothenburg, Sweden"]
[Date "2022.10.01"]
[Round "5.5"]
[White "Golubka, Petro"]
[Black "Strom-Engdahl, Alexander"]
[Result "1-0"]
[TimeControl "15 minutes + 5 seconds per move from move one (Round 1 - 4) / 90 minutes + 30 seconds per move from move one (Round 5 - 8)"]
[WhiteTitle "GM"]
[WhiteFideId "14114224"]
[BlackFideId "1741586"]
[WhiteElo "2360"]
[BlackElo "2114"]

1. c4 {[%clk 01:22:40]} {[%emt 00:08:19]} c5 {[%clk 01:29:29]} {[%emt
00:01:31]} 2. Nc3 {[%clk 01:22:59]} {[%emt 00:00:11]} Nc6 {[%clk 01:29:53]}
{[%emt 00:00:06]} 3. g3 {[%clk 01:23:15]} {[%emt 00:00:14]} g6 {[%clk
01:28:57]} {[%emt 00:01:26]} 4. Bg2 {[%clk 01:19:58]} {[%emt 00:03:47]} Bg7
{[%clk 01:29:14]} {[%emt 00:00:13]} 5. d3 {[%clk 01:20:22]} {[%emt 00:00:06]}
d6 {[%clk 01:29:20]} {[%emt 00:00:23]} 6. Nf3 {[%clk 01:20:30]} {[%emt
00:00:23]} e5 {[%clk 01:26:51]} {[%emt 00:02:59]} 7. O-O {[%clk 01:20:52]}
{[%emt 00:00:08]} Nge7 {[%clk 01:27:15]} {[%emt 00:00:06]} 8. a3 {[%clk
01:21:18]} {[%emt 00:00:05]} O-O {[%clk 01:27:30]} {[%emt 00:00:15]} 9. Rb1
{[%clk 01:21:41]} {[%emt 00:00:07]} a5 {[%clk 01:27:10]} {[%emt 00:00:49]} 10.
Ne1 {[%clk 01:22:05]} {[%emt 00:00:06]} Be6 {[%clk 01:27:07]} {[%emt 00:00:33]}
11. Nc2 {[%clk 01:22:31]} {[%emt 00:00:05]} d5 {[%clk 01:24:16]} {[%emt
00:03:20]} 12. cxd5 {[%clk 01:22:51]} {[%emt 00:00:10]} Nxd5 {[%clk 01:24:36]}
{[%emt 00:00:10]} 13. Ne3 {[%clk 01:23:18]} {[%emt 00:00:03]} Nxe3 {[%clk
01:17:39]} {[%emt 00:07:28]} 14. Bxe3 {[%clk 01:23:39]} {[%emt 00:00:09]} Qe7
{[%clk 01:17:46]} {[%emt 00:00:23]} 15. Bxc6 {[%clk 01:22:53]} {[%emt
00:01:15]} bxc6 {[%clk 01:16:55]} {[%emt 00:01:21]} 16. Ne4 {[%clk 01:22:48]}
{[%emt 00:00:35]} Rfd8 {[%clk 01:11:54]} {[%emt 00:05:30]} 17. Nxc5 {[%clk
01:18:38]} {[%emt 00:04:41]} Bd5 {[%clk 01:10:41]} {[%emt 00:01:43]} 18. f3
{[%clk 01:18:54]} {[%emt 00:00:14]} f5 {[%clk 01:06:52]} {[%emt 00:04:19]} 19.
Qc2 {[%clk 01:18:49]} {[%emt 00:00:35]} h5 {[%clk 00:59:37]} {[%emt 00:07:45]}
20. Bf2 {[%clk 01:18:30]} {[%emt 00:00:49]} f4 {[%clk 00:54:52]} {[%emt
00:05:15]} 21. b3 {[%clk 01:09:43]} {[%emt 00:09:17]} g5 {[%clk 00:51:43]}
{[%emt 00:03:39]} 22. g4 {[%clk 01:09:43]} {[%emt 00:00:31]} hxg4 {[%clk
00:50:03]} {[%emt 00:02:09]} 23. fxg4 {[%clk 01:10:07]} {[%emt 00:00:04]} Rd6
{[%clk 00:47:17]} {[%emt 00:03:19]} 24. e4 {[%clk 01:07:47]} {[%emt 00:02:50]}
Bf7 {[%clk 00:38:06]} {[%emt 00:09:40]} 25. Kg2 {[%clk 01:05:47]} {[%emt
00:02:30]} Rdd8 {[%clk 00:34:02]} {[%emt 00:04:35]} 26. h3 {[%clk 01:06:01]}
{[%emt 00:00:16]} Qc7 {[%clk 00:33:44]} {[%emt 00:00:47]} 27. Qc3 {[%clk
01:03:45]} {[%emt 00:02:48]} Bf8 {[%emt 00:07:04]} 28. Rfd1 {[%clk 01:01:44]}
Re8 {[%clk 00:26:16]} {[%emt 00:03:54]} 29. h4 {[%clk 00:51:51]} {[%emt
00:10:23]} Qe7 {[%clk 00:24:18]} {[%emt 00:02:27]} 30. hxg5 {[%clk 00:49:52]}
{[%emt 00:02:29]} Qxg5 {[%clk 00:22:41]} {[%emt 00:02:08]} 31. Kf3 {[%clk
00:50:15]} {[%emt 00:00:07]} Ra7 {[%clk 00:20:54]} {[%emt 00:02:17]} 32. Rh1
{[%clk 00:44:35]} {[%emt 00:06:09]} Bxc5 {[%clk 00:18:10]} {[%emt 00:03:14]} 33.
Bxc5 {[%clk 00:32:34]} {[%emt 00:12:32]} Be6 {[%clk 00:14:53]} {[%emt
00:03:46]} 34. Rbg1 {[%clk 00:31:08]} {[%emt 00:01:56]} Rg7 {[%clk 00:14:37]}
{[%emt 00:00:46]} 35. Kf2 {[%clk 00:26:54]} {[%emt 00:04:44]} Bxg4 {[%clk
00:13:16]} {[%emt 00:01:51]} 36. Qxa5 {[%clk 00:26:26]} {[%emt 00:00:58]} Qf6
{[%clk 00:09:42]} {[%emt 00:04:04]} 37. a4 {[%clk 00:22:34]} {[%emt 00:04:22]}
Qe6 {[%clk 00:08:59]} {[%emt 00:01:13]} 38. Qc3 {[%clk 00:22:38]} {[%emt
00:00:28]} Rb8 {[%clk 00:08:56]} {[%emt 00:00:31]} 39. Rb1 {[%clk 00:17:58]}
{[%emt 00:05:10]} Bh3 {[%clk 00:07:48]} {[%emt 00:01:39]} 40. Rhg1 {[%clk
00:17:54]} {[%emt 00:00:33]} Qf6 {[%clk 00:07:30]} {[%emt 00:00:48]} 41. Rxg7+
{[%clk 00:14:48]} {[%emt 00:03:36]} Kxg7 {[%clk 00:07:54]} {[%emt 00:00:06]} 42.
Rg1+ {[%clk 00:14:24]} {[%emt 00:00:55]} Kf7 {[%clk 00:06:35]} {[%emt
00:01:49]} 43. Qa5 {[%clk 00:09:48]} {[%emt 00:05:06]} Rb7 {[%clk 00:06:30]}
{[%emt 00:00:35]} 44. Ke1 {[%clk 00:07:57]} {[%emt 00:02:20]} Rd7 {[%clk
00:06:28]} {[%emt 00:00:33]} 45. Kd2 {[%clk 00:07:49]} {[%emt 00:00:37]} f3
{[%clk 00:06:14]} {[%emt 00:00:44]} 46. Bf2 {[%clk 00:07:11]} {[%emt 00:01:09]}
Qd6 {[%clk 00:05:48]} {[%emt 00:00:56]} 47. Qc3 {[%clk 00:07:21]} {[%emt
00:00:18]} Bg2 {[%clk 00:06:01]} {[%emt 00:00:18]} 48. a5 {[%clk 00:07:24]}
{[%emt 00:00:27]} Qh6+ {[%clk 00:04:09]} {[%emt 00:02:23]} 49. Kc2 {[%clk
00:07:42]} {[%emt 00:00:11]} Qd6 {[%clk 00:03:11]} {[%emt 00:01:28]} 50. Ra1
{[%clk 00:07:51]} {[%emt 00:00:21]} Rd8 {[%clk 00:02:21]} {[%emt 00:01:20]} 51.
a6 {[%clk 00:07:36]} {[%emt 00:00:46]} Bh3 {[%clk 00:02:16]} {[%emt 00:00:35]}
52. a7 {[%clk 00:07:48]} {[%emt 00:00:18]} Ra8 {[%clk 00:02:45]} {[%emt
00:00:01]} 53. Ra5 {[%clk 00:07:44]} {[%emt 00:00:34]} Bf1 {[%clk 00:02:28]}
{[%emt 00:00:47]} 54. Rxe5 {[%clk 00:07:24]} {[%emt 00:00:49]} Bxd3+ {[%clk
00:02:45]} {[%emt 00:00:13]} 55. Kb2 {[%clk 00:07:34]} {[%emt 00:00:20]} Bf1
{[%clk 00:01:59]} {[%emt 00:01:16]} 56. Qxf3+ {[%clk 00:07:06]} {[%emt
00:00:58]} Qf6 {[%clk 00:02:08]} {[%emt 00:00:21]} 57. Qxf6+ {[%clk 00:07:28]}
{[%emt 00:00:09]} Kxf6 {[%clk 00:02:37]} 58. Bd4 {[%clk 00:07:49]} {[%emt
00:00:08]} Kg6 {[%clk 00:02:14]} {[%emt 00:00:53]} 59. Re6+ {[%clk 00:07:45]}
{[%emt 00:00:34]} Kg5 {[%clk 00:02:19]} {[%emt 00:00:25]} 60. Be3+ {[%clk
00:07:39]} {[%emt 00:00:36]} Kg4 {[%clk 00:02:42]} {[%emt 00:00:07]} 61. Bc5
{[%clk 00:06:53]} {[%emt 00:01:16]} Bb5 {[%clk 00:02:51]} {[%emt 00:00:21]} 62.
Rf6 {[%clk 00:07:15]} {[%emt 00:00:08]} 1-0

[Event "Kvibergspelen 2022"]
[Site "Kviberg Park Hotel & Conference, Krutvagen 2, Gothenburg, Sweden"]
[Date "2022.10.01"]
[Round "5.6"]
[White "Grahn, Vidar"]
[Black "Agdestein, Simen"]
[Result "0-1"]
[TimeControl "15 minutes + 5 seconds per move from move one (Round 1 - 4) / 90 minutes + 30 seconds per move from move one (Round 5 - 8)"]
[BlackTitle "GM"]
[WhiteFideId "1744780"]
[BlackFideId "1500015"]
[WhiteElo "2054"]
[BlackElo "2576"]

1. e4 {[%clk 01:30:57]} {[%emt 00:00:02]} c5 {[%clk 01:29:15]} {[%emt
00:01:45]} 2. Nf3 {[%clk 01:31:20]} {[%emt 00:00:07]} e6 {[%clk 01:29:29]}
{[%emt 00:00:16]} 3. d4 {[%clk 01:31:24]} {[%emt 00:00:26]} cxd4 {[%clk
01:29:40]} {[%emt 00:00:19]} 4. Nxd4 {[%clk 01:31:50]} {[%emt 00:00:05]} Nc6
{[%clk 01:29:58]} {[%emt 00:00:11]} 5. c4 {[%clk 01:28:04]} {[%emt 00:04:16]}
Nf6 {[%clk 01:30:09]} {[%emt 00:00:19]} 6. Nc3 {[%clk 01:28:23]} {[%emt
00:00:11]} Bb4 {[%clk 01:29:56]} {[%emt 00:00:42]} 7. Nxc6 {[%clk 01:28:25]}
{[%emt 00:00:29]} bxc6 {[%clk 01:29:48]} {[%emt 00:00:38]} 8. Bd3 {[%clk
01:28:27]} {[%emt 00:00:28]} e5 {[%clk 01:28:11]} {[%emt 00:02:07]} 9. O-O
{[%clk 01:27:58]} {[%emt 00:00:59]} O-O {[%clk 01:28:17]} {[%emt 00:00:24]} 10.
Na4 {[%clk 01:20:54]} {[%emt 00:07:35]} d5 {[%clk 01:25:36]} {[%emt 00:03:11]}
11. exd5 {[%clk 01:18:06]} {[%emt 00:03:18]} cxd5 {[%clk 01:24:18]} {[%emt
00:01:49]} 12. a3 {[%clk 01:16:58]} {[%emt 00:01:38]} Bd6 {[%clk 01:18:41]}
{[%emt 00:06:06]} 13. Bg5 {[%clk 01:11:19]} {[%emt 00:06:09]} e4 {[%clk
01:12:22]} {[%emt 00:06:49]} 14. Bc2 {[%clk 01:04:59]} {[%emt 00:06:50]} dxc4
{[%clk 01:11:02]} {[%emt 00:01:50]} 15. Nc3 {[%clk 00:48:31]} {[%emt 00:16:58]}
Bb7 {[%clk 01:10:45]} {[%emt 00:00:47]} 16. Bxf6 {[%clk 00:34:49]} {[%emt
00:14:12]} Qxf6 {[%clk 01:10:52]} {[%emt 00:00:23]} 17. Bxe4 {[%clk 00:34:54]}
{[%emt 00:00:25]} Bxe4 {[%clk 01:09:18]} {[%emt 00:02:04]} 18. Nxe4 {[%clk
00:34:51]} {[%emt 00:00:34]} Bxh2+ {[%clk 01:09:44]} {[%emt 00:00:03]} 19. Kxh2
{[%clk 00:35:10]} {[%emt 00:00:12]} Qh4+ {[%clk 01:10:09]} {[%emt 00:00:04]} 20.
Kg1 {[%clk 00:35:24]} {[%emt 00:00:16]} Qxe4 {[%clk 01:10:35]} {[%emt
00:00:04]} 21. Re1 {[%clk 00:35:37]} {[%emt 00:00:18]} Qc6 {[%clk 01:02:44]}
{[%emt 00:08:20]} 22. Rc1 {[%clk 00:35:42]} {[%emt 00:00:25]} Rad8 {[%clk
00:53:59]} {[%emt 00:09:15]} 23. Qc2 {[%clk 00:32:47]} {[%emt 00:03:25]} Rd4
{[%clk 00:53:44]} {[%emt 00:00:45]} 24. Re3 {[%clk 00:32:16]} {[%emt 00:01:01]}
Rg4 {[%clk 00:46:57]} {[%emt 00:07:17]} 25. g3 {[%clk 00:31:04]} {[%emt
00:01:42]} h5 {[%clk 00:44:00]} {[%emt 00:03:27]} 26. Rc3 {[%clk 00:28:42]}
{[%emt 00:02:52]} Qb6 {[%clk 00:35:26]} {[%emt 00:09:04]} 27. Kg2 {[%clk
00:26:33]} {[%emt 00:02:39]} Qb7+ {[%clk 00:34:06]} {[%emt 00:01:50]} 28. Kg1
{[%clk 00:26:44]} {[%emt 00:00:19]} h4 {[%clk 00:31:17]} {[%emt 00:03:19]} 29.
Qf5 {[%clk 00:26:05]} {[%emt 00:01:08]} Rg6 {[%clk 00:30:20]} {[%emt 00:01:28]}
30. Qf3 {[%clk 00:21:13]} {[%emt 00:05:21]} Qb6 {[%clk 00:26:19]} {[%emt
00:04:31]} 31. Qe3 {[%clk 00:18:27]} {[%emt 00:03:17]} hxg3 {[%clk 00:26:02]}
{[%emt 00:00:47]} 32. Qxb6 {[%clk 00:18:42]} {[%emt 00:00:15]} gxf2+ {[%clk
00:26:18]} {[%emt 00:00:14]} 33. Kxf2 {[%clk 00:19:05]} {[%emt 00:00:08]} Rxb6
{[%clk 00:26:37]} {[%emt 00:00:10]} 34. R1c2 {[%clk 00:19:20]} {[%emt
00:00:15]} Rfb8 {[%clk 00:26:54]} {[%emt 00:00:13]} 35. Rxc4 {[%clk 00:19:29]}
{[%emt 00:00:22]} Rxb2 {[%clk 00:27:12]} {[%emt 00:00:11]} 36. Rxb2 {[%clk
00:19:35]} {[%emt 00:00:24]} Rxb2+ {[%clk 00:27:37]} {[%emt 00:00:06]} 37. Kf1
{[%emt 00:02:34]} Rb5 {[%clk 00:25:39]} 38. Rc8+ {[%clk 00:20:00]} {[%emt
00:00:28]} Kh7 {[%clk 00:26:00]} {[%emt 00:00:10]} 39. Rc7 {[%clk 00:20:28]}
{[%emt 00:00:02]} Rf5+ {[%clk 00:26:17]} {[%emt 00:00:12]} 40. Kg2 {[%clk
00:20:50]} {[%emt 00:00:08]} a5 {[%clk 00:26:35]} {[%emt 00:00:12]} 41. a4
{[%clk 00:20:53]} {[%emt 00:00:27]} g5 {[%clk 00:26:20]} {[%emt 00:00:44]} 42.
Rb7 {[%clk 00:21:14]} {[%emt 00:00:09]} Kg6 {[%clk 00:25:51]} {[%emt 00:00:59]}
43. Rb5 {[%clk 00:21:09]} {[%emt 00:00:36]} f6 {[%clk 00:25:43]} {[%emt
00:00:38]} 44. Kg3 {[%clk 00:21:22]} {[%emt 00:00:16]} Re5 {[%clk 00:26:06]}
{[%emt 00:00:08]} 45. Kf3 {[%clk 00:21:39]} {[%emt 00:00:13]} Kf5 {[%clk
00:26:22]} {[%emt 00:00:13]} 46. Rb8 {[%clk 00:21:50]} {[%emt 00:00:20]} g4+
{[%clk 00:25:14]} {[%emt 00:01:38]} 47. Kg3 {[%clk 00:22:08]} {[%emt 00:00:12]}
Re3+ {[%clk 00:25:08]} {[%emt 00:00:36]} 48. Kg2 {[%clk 00:22:28]} {[%emt
00:00:10]} Kf4 {[%clk 00:25:25]} {[%emt 00:00:14]} 49. Rb5 {[%clk 00:22:48]}
{[%emt 00:00:09]} Re5 {[%clk 00:25:36]} {[%emt 00:00:19]} 50. Rb8 {[%clk
00:23:07]} {[%emt 00:00:11]} Re2+ {[%clk 00:25:57]} {[%emt 00:00:09]} 51. Kf1
{[%clk 00:23:22]} {[%emt 00:00:15]} Ra2 {[%clk 00:26:20]} {[%emt 00:00:07]} 52.
Kg1 {[%clk 00:23:25]} {[%emt 00:00:27]} Rxa4 {[%clk 00:26:43]} {[%emt
00:00:07]} 53. Rb2 {[%clk 00:23:46]} {[%emt 00:00:09]} f5 {[%clk 00:26:51]}
{[%emt 00:00:22]} 54. Kh1 {[%clk 00:24:06]} {[%emt 00:00:10]} Rb4 {[%clk
00:26:49]} {[%emt 00:00:33]} 55. Rf2+ {[%clk 00:24:26]} {[%emt 00:00:10]} Kg3
{[%clk 00:27:02]} {[%emt 00:00:16]} 56. Rg2+ {[%clk 00:24:45]} {[%emt
00:00:11]} Kf3 {[%clk 00:27:26]} {[%emt 00:00:06]} 57. Kh2 {[%clk 00:24:39]}
{[%emt 00:00:35]} f4 {[%clk 00:27:07]} {[%emt 00:00:50]} 58. Rg1 {[%clk
00:24:53]} {[%emt 00:00:16]} g3+ {[%clk 00:27:22]} {[%emt 00:00:17]} 59. Kh1
{[%clk 00:25:17]} {[%emt 00:00:04]} a4 {[%clk 00:27:33]} {[%emt 00:00:19]} 60.
Rf1+ {[%clk 00:25:31]} {[%emt 00:00:16]} Kg4 {[%clk 00:27:58]} {[%emt
00:00:06]} 61. Ra1 {[%clk 00:25:49]} {[%emt 00:00:11]} f3 {[%clk 00:28:09]}
{[%emt 00:00:19]} 62. Kg1 {[%clk 00:26:04]} {[%emt 00:00:15]} a3 {[%clk
00:27:45]} {[%emt 00:00:54]} 0-1